{"text_format":"1","workbook":"xlsx","n_sheets":8,"sheets":["急性期","JCS退院時","mRS入院時","mRS退院時","NIHSS退院時","MNA","FIM退院時","CPS "],"not_rendered":{"charts":0,"images":61,"macros":1,"external_links":0,"defined_names":2,"comments":0,"pivot_tables":0},"unopened":[],"bounds":{"document_bytes":16777216,"sheet_cells":100000,"rows_first":2000,"rows_last":500,"rows_between":2000,"halvings":0,"cell_chars":16384,"cell_head_chars":4096},"cells_cut":0,"cells_raw":0,"read":"whole","date_system":"1900"}

{"sheet":"急性期","index":0,"n_rows":68,"n_cols":34,"rows_kept":68,"cut":false,"hidden":false,"merged":[[12,31,12,32],[15,4,15,6],[19,12,19,15],[27,23,27,25],[27,26,27,27],[12,1,12,4],[18,8,18,10],[19,2,19,4],[17,2,18,2],[14,2,14,8],[16,2,16,8],[26,23,26,25],[20,3,20,4],[23,23,23,25],[26,29,26,32],[20,5,20,12],[20,14,20,15],[24,29,24,32],[23,17,23,19],[23,31,23,32],[23,20,23,21],[18,19,18,24],[18,11,18,14],[19,8,19,10],[21,30,21,32],[24,19,24,24],[24,9,24,14],[17,12,17,14],[17,3,17,11],[15,10,15,13],[42,1,46,1],[45,2,46,4],[16,29,16,32],[25,1,39,1],[32,9,32,32],[42,16,42,18],[43,16,43,18],[44,16,44,18],[45,16,46,18],[47,1,52,1],[33,2,39,2],[30,2,32,2],[25,29,25,32],[26,2,29,2],[41,4,41,5],[41,7,41,8],[40,16,41,18],[26,12,26,14],[28,3,29,4],[28,5,29,10],[36,25,36,27],[34,30,34,32],[1,1,11,1],[10,18,11,21],[4,8,4,13],[4,14,4,19],[4,25,4,29],[4,2,4,7],[3,11,3,13],[12,9,12,13],[12,18,12,19],[12,24,12,25],[4,30,4,33],[2,12,2,24],[2,9,2,11],[3,28,3,33],[10,2,10,4],[11,2,11,4],[5,14,5,19],[5,20,5,24],[8,9,8,10],[8,11,8,14],[9,9,9,11],[10,22,11,33],[5,30,5,33],[6,28,6,32],[6,21,6,24],[6,17,6,20],[8,20,8,24],[6,2,6,4],[8,2,8,4],[40,33,41,33],[45,33,46,33],[47,33,48,33],[42,30,42,32],[42,27,42,29],[30,26,30,31],[31,19,31,31],[48,30,48,31],[28,30,28,32],[48,28,48,29],[0,24,0,26],[3,26,3,27],[7,27,7,28],[9,28,9,32],[4,20,4,24],[7,2,7,4],[9,2,9,4],[7,29,7,32],[1,17,1,18],[1,22,1,24],[1,11,1,12],[1,19,1,20],[3,2,3,4],[1,5,1,9],[0,27,0,33],[9,12,9,13],[5,2,5,7],[5,8,5,13],[1,29,1,33],[2,32,2,33],[5,25,5,29],[2,2,2,4],[2,5,2,6],[3,5,3,10],[40,0,52,0],[42,2,42,4],[66,1,66,33],[55,20,55,25],[52,6,52,13],[46,6,46,13],[47,16,48,18],[49,16,49,18],[50,16,50,18],[51,16,51,18],[52,16,52,18],[63,9,63,33],[61,6,61,7],[62,21,62,33],[61,8,61,11],[61,12,61,14],[61,15,61,17],[62,8,62,9],[59,2,60,5],[61,30,61,32],[61,19,61,23],[62,16,62,17],[53,0,65,0],[53,1,58,1],[12,0,39,0],[1,0,11,0],[14,1,20,1],[21,1,24,1],[41,20,41,21],[41,22,41,23],[41,30,41,31],[46,20,46,22],[48,20,48,21],[41,10,41,11],[41,12,41,13],[43,2,43,4],[44,2,44,4],[40,15,52,15],[40,1,40,3],[40,8,40,10],[40,4,40,6],[40,11,40,13],[3,14,3,19],[3,20,3,21],[1,2,1,4],[2,7,2,8],[2,25,2,29],[3,22,3,25],[67,1,67,33],[130,0,131,10],[130,30,130,37],[131,30,131,37],[82,0,82,1],[83,0,83,1],[84,0,84,1],[85,0,85,1],[86,0,86,1],[87,0,87,1],[81,0,81,1],[59,1,63,1],[64,1,65,1],[64,2,64,5],[62,2,62,5],[58,9,58,33],[65,2,65,8],[53,27,55,29],[65,9,65,33],[62,19,62,20],[61,2,61,5],[56,2,57,5],[55,10,55,15],[64,20,64,23],[63,2,63,8],[58,2,58,8],[55,2,55,5],[53,2,54,5]]}
["脳","急性期病院用連携シート（脳卒中地域連携パス　北九州標準モデルver.3.1）",null,null,null,null,null,null,null,null,null,null,null,null,null,null,null,null,null,null,null,null,null,null,"施設名"]
["MSW","基本情報","氏名",null,null,null,null,null,null,null,"様","性別",null,null,"男",null,"女","年齢",null,null,null,"歳","かかりつけ医",null,null,null,"無",null,"有"]
[null,null,"イニシャル",null,null,null,null,"生年月",null,null,null,null,"←名前の記入をご希望されない場合はイニシャル及び生年月のみご記入下さい。",null,null,null,null,null,null,null,null,null,null,null,null,"入院中の脳卒中再発",null,null,null,null,null,"無","     有"]
[null,null,"入院日",null,null,"年　月　日",null,null,null,null,null,"退院日",null,null,"年　月　日",null,null,null,null,null,"病名",null,null,null,null,null,"発症日",null,"年　月　日"]
[null,null,"担当医",null,null,null,null,null,"看護師",null,null,null,null,null,"MSW",null,null,null,null,null,"PT",null,null,null,null,"OT",null,null,null,null,"ST"]
[]
[null,null,"転院先",null,null,null,"自宅",null,"回復期病院",null,null,null,"地域包括ケア病棟",null,null,null,null,"介護保健施設",null,null,null,"療養型病院",null,null,null,"その他",null,"（",null,null,null,null,null,"）"]
[null,null,"居宅",null,null,"　　　　　　　　","持ち家",null,null,"借家",null,"共同住宅（",null,null,"エレベーター",null,null,null,"無",null,"有","）","介護保健施設",null,null,null,null,"その他（",null,null,null,null,null,"）"]
[null,null,"同居",null,null,null,"無",null,"有",null,null,"※日中在宅者",null,null,null,null,"無",null,"有",null,"※介護を見込める者",null,null,null,null,null,null,"無",null,"有"]
[null,null,"就業状態",null,null,null,"無",null,"有",null,null,null,"※職種",null,null,"サービス業",null,null,null,"デスクワーク",null,null,null,"肉体労働",null,null,"その他（",null,null,null,null,null,null,"）"]
[null,null,"介護保険",null,null,"      ","無",null,"申請中",null,null,"有",null,null,null,null,null,null,"特記事項"]
[null,null,"身障手帳",null,null,null,"無",null,"申請中",null,null,"有"]
["医師","スケール",null,null,null,null,null,null,null,{"$f":"JCS退院時!$AA$18&\"\"","v":""},null,null,null,null,null,null,null,null,{"$f":"mRS入院時!A14&\"\"","v":""},null,null,null,null,null,{"$f":"mRS退院時!A14&\"\"","v":""},null,null,null,null,null,null,{"$f":"NIHSS退院時!$AL$69&\"\"","v":""},null,"点"]
[null,null,null,null,null,null,"脳梗塞",null,null,null,null,null,"TIA",null,null,null,null,null,null,null,"脳出血",null,null,null,null,null,null,null,null,"くも膜下出血"]
[null,"発症原因","   　アテローム血栓性",null,null,null,null,null,null,null,null,null,null,null,null,null,null,"高血圧性",null,null,null,null,null,null,null,null,null,"脳動脈瘤"]
[null,null,null,"("," 血栓性",null,null,"塞栓性",null,null,"血行力学性",null,null,null,")",null,null,"脳動静脈奇形",null,null,null,null,null,null,null,null,null,"脳動静脈奇形"]
[null,null,"   　心原性",null,null,null,null,null,null,null,null,null,null,null,null,null,null,"抗血栓療法",null,null,null,null,null,null,null,null,null,"その他（",null,null,null,null,null,"）"]
[null,null,null,"心房細動を主とする不整脈",null,null,null,null,null,null,null,null," 弁膜症",null,null,null,null,"アミロイドアンギオパチー",null,null,null,null,null,null,null,null,null,"不明"]
[null,null,null," 　　 奇異性塞栓症",null,null,null,null," その他(",null,null,null,null,null,null,")",null,"その他（",null,null,null,null,null,null,null,"）"]
[null,null,"  ラクナ",null,null,null,"BAD",null,"血管解離",null,null,null," 無症候性",null,null,null,null,"不明"]
[null,null,null,"その他（",null,null,null,null,null,null,null,null,null,")","不明"]
[null,"治療",null,"保存療法",null,null,null,null,null,null,null,"t-PA",null,null,null,null,null,"保存療法",null,null,null,null,null,null,null,null,null,"血管内治療",null,null,"保存的治療"]
[null,null,null,"血管内治療",null,null,null,null,null,null,null,"頸動脈剥離術",null,null,null,null,null,"外科的治療",null,null,null,null,null,null,null,null,null,"外科的治療"]
[null,null,null,"頸動脈ステント術",null,null,null,null,null,null,null,"バイパス術",null,null,null,null,null,"開頭血種除去",null,null,"穿頭術",null,null,"脳室ドレナージ",null,null,null,"クリッピング",null,null,"その他(",null,null,")"]
[null,null,null,"外減圧術",null,null,null,"その他(",null,null,null,null,null,null,null,")",null,"その他(",null,null,null,null,null,null,null,")",null,"その他(",null,null,null,null,null,")"]
[null,"今後の医学的管理","降圧治療",null,null,null,"無",null,"有","(目標 ",null,null,"130/80mmHg",null,null,null,null,"135/85mmHg",null,null,null,null,"140/90mmHg )",null,null,null,null,"その他（",null,null,null,null,null,"）)"]
[null,null,"内服治療","抗血小板療法",null,null,null,"無",null,"有","(",null,"アスピリン",null,null,"クロピドグレル",null,null,null,"シロスタゾール",null,null,null,"プラスグレル",null,null,null,"その他（",null,null,null,null,null,"）)"]
[null,null,null,"抗凝固療法",null,null,null,"無",null,"有","(",null,"ワーファリン（",null,null,null,"INR2.0～3.0",null,null,null,"INR1.6～2.6",null,null,"その他 INR",null,null,"～",null,"）",null,"DOAC  )"]
[null,null,null,"その他",null,null,null,null,null,null,null,null,"ダビガトラン",null,null,null,"エドキサバン",null,null,null,"リバーロキサバン",null,null,null,"アピキサバン",null,null,null,"他DOAC（",null,null,null,null,")"]
[null,null,null,null,null,null,null,null,null,null,null,null,null,null,null,null,"＊抗血小板薬２剤併用時や抗凝固療法中の脳出血時などは内服治療の方針を明記して下さい。"]
[null,null,"画像検査","頭部画像検査　　　　　",null,null,null,null,null,null,"必要なし",null,null,"必要あり",null,null,"（",null,"頭部CT",null,null,"頭部MRI",null,null,"その他（",null,null,null,null,null,null,null,"）","）"]
[null,null,null,"その他の画像検査　　 　",null,null,null,null,null,null,"必要なし",null,null,"必要あり",null,null,"（","検査名（",null,null,null,null,null,null,null,null,null,null,null,null,null,null,"）","）"]
[null,null,null,"期間・頻度に関して記載（",null,null,null,null,null,null,null,null,null,null,null,null,null,null,null,null,null,null,null,null,null,null,null,null,null,null,null,null,null,"）"]
[null,null,"合併症管理","水頭症",null,null,null,null,null,null,"無",null,"治療中(",null,null,"シャント造設術後",null,null,null,null,null,"保存療法",null,null,null,"）"]
[null,null,null,"脳卒中後てんかん",null,null,null,null,null,null,"無",null,"治療中(",null,null,"抗てんかん薬内服（血中モニターの必要性",null,null,null,null,null,null,null,null,null,null,"無",null,"有)",null,"経過観察",null,null,"）"]
[null,null,null,"痙縮",null,null,null,null,null,null,"無",null,"治療中(",null,null,"A型ボツリヌス毒素",null,null,null,null,null,"抗痙縮薬",null,null,null,"リハビリテーション",null,null,null,null,"）"]
[null,null,null,"深部静脈血栓症",null,null,null,null,null,null,"無",null,"入院中に治癒",null,null,null,null,"治療中",null,"（",null,"抗凝固療法",null,null,null,"経過観察",null,null,"）"]
[null,null,null,"脳卒中後うつ",null,null,null,null,null,null,"無",null,"入院中に治癒",null,null,null,null,"治療中",null,"（",null,"抗うつ薬",null,null,null,"経過観察",null,null,"）"]
[null,null,null,"誤嚥性肺炎",null,null,null,null,null,null,"無",null,"入院中に治癒",null,null,null,null,"治療中"]
[null,null,null,"褥創",null,null,null,null,null,null,"無",null,"入院中に治癒",null,null,null,null,"治療中"]
["栄養士・看護師・リハビリ",null,null,null,{"$f":"MNA!$AE$24","v":""},null,null,"点","BI",null,null,{"$f":"IF(OR(AH41=\"\",AH43=\"\",AH44=\"\",AH45=\"\",AH46=\"\",AH48=\"\",AH50=\"\",AH51=\"\",AH52=\"\",AH53=\"\"),\"\",SUM(AH41:AH53))","v":""},null,null,"点","Bartherl Index","食事",null,null,null,"自立（10点）",null,null,"部分介助(5点)",null,null,null,"全介助(0点)"]
[null,null,null,null,"(運動)",null,{"$f":"IF(OR(FIM退院時!AC5=\"\",FIM退院時!AC6=\"\",FIM退院時!AC7=\"\",FIM退院時!AC8=\"\",FIM退院時!AC9=\"\",FIM退院時!AC10=\"\",FIM退院時!AC11=\"\",FIM退院時!AC12=\"\",FIM退院時!AC13=\"\",FIM退院時!AC14=\"\",FIM退院時!AC15=\"\",FIM退院時!AC16=\"\",FIM退院時!AC17=\"\"),\"\",SUM(FIM退院時!AC5:AC17))","v":""},"点(認知)",null,{"$f":"IF(OR(FIM退院時!AC18=\"\",FIM退院時!AC19=\"\",FIM退院時!AC20=\"\",FIM退院時!AC21=\"\",FIM退院時!AC22=\"\"),\"\",SUM(FIM退院時!AC18:AC22))","v":""},"点(合計)",null,{"$f":"IF(OR(G42=\"\",J42=\"\"),\"\",G42+J42)","v":""},null,"点",null,null,null,null,null,"経口",null,"経鼻",null,"胃ろう",null,"点滴",null,"その他（",null,null,null,"）"]
[null,"問題点","服薬管理",null,null,null,"自立",null,null,"一部介助",null,null,null,"全介助",null,null,"移乗",null,null,null,"自立(15点)",null,null,"介助監視(10点)",null,null,null,"移動介助(5点)",null,null,"全介助(0点)"]
[null,null,"口腔清潔",null,null,null,"自立",null,null,"一部介助",null,null,null,"全介助",null,null,"整容",null,null,null,"自立(5点)",null,null,"全介助(0点)"]
[null,null,"義歯",null,null,null,"無",null,null,"適合",null,null,null,"不適合",null,null,"トイレ",null,null,null,"自立(10点)",null,null,"部分介助(5点)",null,null,null,"全介助(0点)"]
[null,null,"問題行動",null,null,null,null,null,null,"有",null,null,null,null,null,null,"入浴",null,null,null,"自立(5点)",null,null,"全介助(0点)"]
[null,null,null,null,null,"（",null,null,null,null,null,null,null,null,"）",null,null,null,null,null,"通常入浴",null,null,"シャワー",null,null,"機械入浴",null,null,"清拭"]
[null,"処置",null,"酸素吸入",null,null,null,null,null,null,null,null,null,null,null,null,"歩行",null,null,null,"自立(15点)",null,null,"介助監視(10点)",null,null,null,"車いす(5点)"]
[null,null,null,"喀痰吸引",null,null,null,null,null,null,null,null,null,null,null,null,null,null,null,null,"独歩",null,"杖",null,"装具",null,"車いす",null,"その他（",null,null,null,"）"]
[null,null,null,"膀胱カテーテル",null,null,null,null,null,null,null,null,null,null,null,null,"階段昇降",null,null,null,"自立(10点)",null,null,"部分介助(5点)",null,null,null,"全介助(0点)"]
[null,null,null,"気管切開",null,null,null,null,null,null,null,null,null,null,null,null,"着替え",null,null,null,"自立(10点)",null,null,"部分介助(5点)",null,null,null,"全介助(0点)"]
[null,null,null,"褥瘡処置",null,null,null,null,null,null,null,null,null,null,null,null,"排便",null,null,null,"失禁なし(10点)",null,null,null,"時に失禁(5点)",null,null,null,"全介助(0点)"]
[null,null,null,"その他",null,"（",null,null,null,null,null,null,null,null,"）",null,"排尿",null,null,null,"失禁なし(10点)",null,null,null,"時に失禁(5点)",null,null,null,"全介助(0点)"]
["リハ専門職","PT","Br.stage　",null,null,null,"右下肢",null,null,null,"Ⅰ",null,"Ⅱ",null,"Ⅲ",null,"Ⅳ",null,"Ⅴ",null,"Ⅵ",null,"麻痺なし",null,null,null,null,"失調症状",null,null,null,"失調なし"]
[null,null,null,null,null,null,"左下肢　",null,null,null,null,null,"Ⅱ",null,"Ⅲ",null,"Ⅳ",null,"Ⅴ",null,null,null,"麻痺なし",null,null,null,null,null,null,null,null,"四肢失調"]
[null,null,"装具",null,null,null,null,"無",null,"有(",null,null,null,null,null,null,")",null,"検討中（",null,null,null,null,null,null,null,"）",null,null,null,null,"体幹失調"]
[null,null,"移動能力",null,null,null,null,"不能もしくは二人介助必要",null,null,null,null,null,null,null,null,"体重を支える介助必要",null,null,null,null,null,null,null,"軽く触れる介助必要",null,null,null,null,null,"監視が必要"]
[null,null,null,null,null,null,null,"平地自立",null,null,null,null,null,null,null,null,"完全自立"]
[null,null,"特記事項（訓練内容など）"]
[null,"OT","Br.stage",null,null,null,"右上肢　",null,null,null,"Ⅰ",null,"Ⅱ",null,"Ⅲ",null,"Ⅳ",null,"Ⅴ",null,"Ⅵ",null,"麻痺なし"]
[null,null,null,null,null,null,"左上肢　",null,null,null,"Ⅰ",null,"Ⅱ",null,"Ⅲ",null,"Ⅳ",null,"Ⅴ",null,"Ⅵ",null,"麻痺なし"]
[null,null,"高次\n脳機能\n障害",null,null,null,"無",null,null,null,null,null,"注意障害",null,null,"記憶障害",null,null,null,"社会的行動障害",null,null,null,null,"失行",null,"失認",null,"その他（",null,null,null,null,")"]
[null,null,"認知面",null,null,null,"MMSE            ",null,null,null,"点",null,"or",null,"HDS-R",null,null,null,"点","その他"]
[null,null,"特記事項（訓練内容など）"]
[null,"ST","言語機能",null,null,null,null,"無",null,null,"構音障害",null,null,null,"失語",null,null,null,null,null,"嚥下障害　",null,null,null,null,"無",null,null,null,"有"]
[null,null,"特記事項（訓練内容など）"]
[null,"※　コピーをとって連携先に渡してください。原本は記入医療機関で保存してください。　 また、医師会へ郵送或いはFAXでお送り下さい。"]
[null,"※　任意項目；「ＭＮＡ」「ＦＩＭ」"]

{"sheet":"JCS退院時","index":1,"n_rows":18,"n_cols":25,"rows_kept":18,"cut":false,"hidden":false,"merged":[[0,17,1,18],[0,19,1,19],[0,20,1,23],[0,24,1,26],[17,26,18,26],[0,14,1,16],[0,0,1,2],[0,3,1,7],[0,8,1,8],[0,9,1,11],[0,12,1,13]]}
["氏名",null,null,{"$f":"急性期!$F$2&\"\"","v":""},null,null,null,null,"様","性別",null,null,null,null,"年齢",null,null,{"$f":"急性期!$T$2&\"\"","v":""},null,"歳","施設名",null,null,null,{"$f":"急性期!$AB$1&\"\"","v":""}]
[]
[]
["Japan Coma Scale"]
["Ⅰ.覚醒している（1桁の点数で表現）"]
[]
[]
[]
[]
["Ⅱ.刺激に応じて一時的に覚醒する（2桁の点数で表現）"]
[]
[]
[]
["Ⅲ.刺激しても覚醒しない（3桁の点数で表現）"]
[]
[]
[]
["付加情報"]

{"sheet":"mRS入院時","index":2,"n_rows":12,"n_cols":22,"rows_kept":12,"cut":false,"hidden":false,"merged":[[10,3,10,4],[11,0,12,2],[13,0,14,2],[0,0,1,1],[0,2,1,4],[4,3,4,4],[5,3,5,4],[6,3,6,4],[7,3,7,4],[8,3,8,4],[9,3,9,4],[0,14,1,15],[0,16,1,16],[0,17,1,20],[0,21,1,23],[3,0,3,2],[3,3,3,4],[3,5,3,6],[0,5,1,5],[0,6,1,8],[0,9,1,10],[0,11,1,13]]}
["氏名",null,{"$f":"mRS退院時!C1","v":""},null,null,"様","性別",null,null,null,null,"年齢",null,null,{"$f":"急性期!$T$2&\"\"","v":""},null,"歳","施設名",null,null,null,{"$f":"急性期!$AB$1&\"\"","v":""}]
[]
[]
["入院時",null,null,"Grade",null,"mRS"]
[null,null,null,0,null,"全く症状なし"]
[null,null,null,"Ⅰ",null,"何らかの症状はあるが障害はない：通常の仕事や活動は全て行える"]
[null,null,null,"Ⅱ",null,"軽微な障害：これまでの活動は全てはできないが、身の回りのことは援助なしでできる"]
[null,null,null,"Ⅲ",null,"中等度の障害：何らかの援助を要するが、援助なしで歩行できる"]
[null,null,null,"Ⅳ",null,"中等度から重度の障害：援助なしでは歩行できず、身の回りのこともできない"]
[null,null,null,"Ⅴ",null,"重度の障害：ねたきり、失禁、全面的な介護"]
[null,null,null,"Ⅵ",null,"死亡"]
["入院時Grade"]

{"sheet":"mRS退院時","index":3,"n_rows":12,"n_cols":22,"rows_kept":12,"cut":false,"hidden":false,"merged":[[10,3,10,4],[11,0,12,2],[13,0,14,2],[0,0,1,1],[0,2,1,4],[4,3,4,4],[5,3,5,4],[6,3,6,4],[7,3,7,4],[8,3,8,4],[9,3,9,4],[0,14,1,15],[0,16,1,16],[0,17,1,20],[0,21,1,23],[3,0,3,2],[3,3,3,4],[3,5,3,6],[0,5,1,5],[0,6,1,8],[0,9,1,10],[0,11,1,13]]}
["氏名",null,{"$f":"急性期!$F$2&\"\"","v":""},null,null,"様","性別",null,null,null,null,"年齢",null,null,{"$f":"急性期!$T$2&\"\"","v":""},null,"歳","施設名",null,null,null,{"$f":"急性期!$AB$1&\"\"","v":""}]
[]
[]
["退院時",null,null,"Grade",null,"mRS"]
[null,null,null,0,null,"全く症状なし"]
[null,null,null,"Ⅰ",null,"何らかの症状はあるが障害はない：通常の仕事や活動は全て行える"]
[null,null,null,"Ⅱ",null,"軽微な障害：これまでの活動は全てはできないが、身の回りのことは援助なしでできる"]
[null,null,null,"Ⅲ",null,"中等度の障害：何らかの援助を要するが、援助なしで歩行できる"]
[null,null,null,"Ⅳ",null,"中等度から重度の障害：援助なしでは歩行できず、身の回りのこともできない"]
[null,null,null,"Ⅴ",null,"重度の障害：ねたきり、失禁、全面的な介護"]
[null,null,null,"Ⅵ",null,"死亡"]
["退院時Grade"]

{"sheet":"NIHSS退院時","index":4,"n_rows":69,"n_cols":38,"rows_kept":69,"cut":false,"hidden":false,"merged":[[8,37,10,39],[11,37,13,39],[14,37,16,39],[17,37,20,39],[0,0,1,2],[0,9,1,11],[0,12,1,13],[4,37,7,39],[0,14,1,16],[0,17,1,18],[0,19,1,19],[0,20,1,23],[0,24,1,26],[0,8,1,8],[0,3,1,7],[68,37,70,39],[49,37,52,39],[53,37,55,39],[56,37,59,39],[60,37,63,39],[64,37,67,39],[21,37,24,39],[25,37,30,39],[31,37,36,39],[37,37,42,39],[43,37,48,39]]}
["氏名",null,null,{"$f":"急性期!$F$2&\"\"","v":""},null,null,null,null,"様","性別",null,null,null,null,"年齢",null,null,{"$f":"急性期!$T$2&\"\"","v":""},null,"歳","施設名",null,null,null,{"$f":"急性期!$AB$1&\"\"","v":""}]
[]
[]
["NIHSS"]
["1a. 意識水準",null,null,null,null,null,null,null,null,null,null,null,null,"０：完全覚醒"]
[null,null,null,null,null,null,null,null,null,null,null,null,null,"1：簡単な刺激で覚醒"]
[null,null,null,null,null,null,null,null,null,null,null,null,null,"2：繰り返し刺激、強い刺激で覚醒"]
[null,null,null,null,null,null,null,null,null,null,null,null,null,"3：完全に無反応"]
["1b. 意識障害- 質問",null,null,null,null,null,null,null,null,null,null,null,null,"0：両方正解"]
[null,"（今月の月名及び年齢）",null,null,null,null,null,null,null,null,null,null,null,"1：片方正解"]
[null,null,null,null,null,null,null,null,null,null,null,null,null,"2：両方不正解"]
["1c. 意識障害- 従命",null,null,null,null,null,null,null,null,null,null,null,null,"0：両方正解"]
[null,"（開閉眼、「手を握る・開く」）",null,null,null,null,null,null,null,null,null,null,null,"1：片方正解"]
[null,null,null,null,null,null,null,null,null,null,null,null,null,"2：両方不可能"]
["2. 最良の注視",null,null,null,null,null,null,null,null,null,null,null,null,"0：正常"]
[null,null,null,null,null,null,null,null,null,null,null,null,null,"1：部分的注視視野"]
[null,null,null,null,null,null,null,null,null,null,null,null,null,"2：完全注視麻痺"]
["3. 視野",null,null,null,null,null,null,null,null,null,null,null,null,"0：視野欠損なし"]
[null,null,null,null,null,null,null,null,null,null,null,null,null,"1：部分的半盲"]
[null,null,null,null,null,null,null,null,null,null,null,null,null,"2：完全半盲"]
[null,null,null,null,null,null,null,null,null,null,null,null,null,"3：両側性半盲"]
["4. 顔面麻痺",null,null,null,null,null,null,null,null,null,null,null,null,"0：正常"]
[null,null,null,null,null,null,null,null,null,null,null,null,null,"1：軽度の麻痺"]
[null,null,null,null,null,null,null,null,null,null,null,null,null,"2：部分的麻痺"]
[null,null,null,null,null,null,null,null,null,null,null,null,null,"3：完全麻痺"]
["5. 上肢の運動（右）　",null,null,null,null,null,null,null,null,null,null,null,null,"0：90 度を10 秒保持可能（下垂なし）　"]
[null,"※仰臥位のときは45 度右上肢",null,null,null,null,null,null,null,null,null,null,null,"1：90 度を保持できるが、10 秒以内に下垂"]
[null,null,null,null,null,null,null,null,null,null,null,null,null,"2：90 度の挙上または保持ができない"]
[null,null,null,null,null,null,null,null,null,null,null,null,null,"3：重力に抗して動かない"]
[null,null,null,null,null,null,null,null,null,null,null,null,null,"4：全く動きがみられない"]
[null,null,null,null,null,null,null,null,null,null,null,null,null,"9：切断、関節癒合"]
["　 上肢の運動（左）",null,null,null,null,null,null,null,null,null,null,null,null,"0：90 度を10 秒保持可能（下垂なし）　"]
[null,"※仰臥位のときは45 度左上肢",null,null,null,null,null,null,null,null,null,null,null,"1：90 度を保持できるが、10 秒以内に下垂"]
[null,null,null,null,null,null,null,null,null,null,null,null,null,"2：90 度の挙上または保持ができない"]
[null,null,null,null,null,null,null,null,null,null,null,null,null,"3：重力に抗して動かない"]
[null,null,null,null,null,null,null,null,null,null,null,null,null,"4：全く動きがみられない"]
[null,null,null,null,null,null,null,null,null,null,null,null,null,"9：切断、関節癒合"]
["6. 「下肢の運動（右）」",null,null,null,null,null,null,null,null,null,null,null,null,"0：30 度を5 秒間保持できる（下垂なし）"]
[null,null,null,null,null,null,null,null,null,null,null,null,null,"1：30 度を保持できるが、5 秒以内に下垂"]
[null,null,null,null,null,null,null,null,null,null,null,null,null,"2：重力に抗して動きがみられる"]
[null,null,null,null,null,null,null,null,null,null,null,null,null,"3：重力に抗して動かない"]
[null,null,null,null,null,null,null,null,null,null,null,null,null,"4：全く動きがみられない"]
[null,null,null,null,null,null,null,null,null,null,null,null,null,"9：切断、関節癒合"]
["　 「下肢の運動（左）」",null,null,null,null,null,null,null,null,null,null,null,null,"0：30 度を5 秒間保持できる（下垂なし）"]
[null,null,null,null,null,null,null,null,null,null,null,null,null,"1：30 度を保持できるが、5 秒以内に下垂"]
[null,null,null,null,null,null,null,null,null,null,null,null,null,"2：重力に抗して動きがみられる"]
[null,null,null,null,null,null,null,null,null,null,null,null,null,"3：重力に抗して動かない"]
[null,null,null,null,null,null,null,null,null,null,null,null,null,"4：全く動きがみられない"]
[null,null,null,null,null,null,null,null,null,null,null,null,null,"9：切断、関節癒合"]
["7. 運動失調",null,null,null,null,null,null,null,null,null,null,null,null,"0：なし"]
[null,null,null,null,null,null,null,null,null,null,null,null,null,"1：1 肢"]
[null,null,null,null,null,null,null,null,null,null,null,null,null,"2：2 肢"]
[null,null,null,null,null,null,null,null,null,null,null,null,null,"9：切断、関節癒合"]
["8. 感覚",null,null,null,null,null,null,null,null,null,null,null,null,"0：障害なし"]
[null,null,null,null,null,null,null,null,null,null,null,null,null,"1：軽度から中等度"]
[null,null,null,null,null,null,null,null,null,null,null,null,null,"2：重度から完全"]
["9. 最良の言語",null,null,null,null,null,null,null,null,null,null,null,null,"0：失語なし"]
[null,null,null,null,null,null,null,null,null,null,null,null,null,"1：軽度から中等度"]
[null,null,null,null,null,null,null,null,null,null,null,null,null,"2：重度の失語"]
[null,null,null,null,null,null,null,null,null,null,null,null,null,"3：無言、全失語"]
["10. 構音障害",null,null,null,null,null,null,null,null,null,null,null,null,"0：正常"]
[null,null,null,null,null,null,null,null,null,null,null,null,null,"1：軽度から中等度"]
[null,null,null,null,null,null,null,null,null,null,null,null,null,"2：重度"]
[null,null,null,null,null,null,null,null,null,null,null,null,null,"9：挿管または身体的障壁"]
["11. 消去現象と注意障害",null,null,null,null,null,null,null,null,null,null,null,null,"0：異常なし"]
[null,null,null,null,null,null,null,null,null,null,null,null,null,"1：視覚、触覚、聴覚、視空間、または自己身体に対する不注意、"]
[null,null,null,null,null,null,null,null,null,null,null,null,null,null,"あるいは1 つの感覚様式で2点同時刺激に対する消去現象"]
[null,null,null,null,null,null,null,null,null,null,null,null,null,"2：重度の半側不注意あるいは2 つ以上の感覚様式に対する半側不注意"]
[null,null,null,null,null,null,null,null,null,null,null,null,null,null,null,null,null,null,null,null,null,null,null,null,null,null,null,null,null,null,null,null,null,null,null,null,null,{"$f":"IF(OR(AL5=\"\",AL9=\"\",AL12=\"\",AL15=\"\",AL18=\"\",AL22=\"\",AL26=\"\",AL32=\"\",AL38=\"\",AL44=\"\",AL50=\"\",AL54=\"\",AL57=\"\",AL61=\"\",AL65=\"\"),\"\",SUM(AL5:AN68))","v":""}]

{"sheet":"MNA","index":5,"n_rows":24,"n_cols":31,"rows_kept":24,"cut":false,"hidden":false,"merged":[[23,30,25,32],[16,30,18,32],[19,30,22,32],[4,0,5,12],[14,0,15,12],[4,30,6,32],[7,30,10,32],[14,30,15,32],[11,30,13,32],[0,17,1,18],[0,19,1,19],[0,20,1,23],[0,24,1,26],[0,0,1,2],[0,9,1,11],[0,12,1,13],[0,14,1,16],[0,8,1,8],[0,3,1,7]]}
["氏名",null,null,{"$f":"急性期!$F$2&\"\"","v":""},null,null,null,null,"様","性別",null,null,null,null,"年齢",null,null,{"$f":"急性期!$T$2&\"\"","v":""},null,"歳","施設名",null,null,null,{"$f":"急性期!$AB$1&\"\"","v":""}]
[]
[]
["栄養状態　MNA"]
["過去３カ月で食欲不振、消化器・嚥下の問題で食事量が減少したか？"]
[]
[]
["過去３カ月で体重減少"]
[]
[]
[]
["自力で歩けるか"]
[]
[]
["過去３カ月間のストレス、急性疾患を経験したか　"]
[]
["神経・精神的問題の有無"]
[]
[]
["ＢＭＩ　　"]
[]
[]
[]
[null,null,null,null,null,null,null,null,null,null,null,null,null,null,null,null,null,null,null,null,null,null,null,null,null,null,null,null,null,null,{"$f":"IF(OR(AE5=\"\",AE8=\"\",AE12=\"\",AE15=\"\",AE17=\"\",AE20=\"\"),\"\",SUM(AE5:AG23))","v":""}]

{"sheet":"FIM退院時","index":6,"n_rows":30,"n_cols":29,"rows_kept":30,"cut":false,"hidden":false,"merged":[[22,19,22,27],[3,19,3,28],[4,19,4,27],[5,19,5,27],[6,19,6,27],[7,19,7,27],[8,19,8,27],[9,19,9,27],[10,19,10,27],[12,19,12,27],[16,19,16,27],[17,19,17,27],[17,0,21,0],[18,19,18,27],[19,19,19,27],[20,19,20,27],[21,19,21,27],[0,20,1,20],[0,21,1,23],[0,24,1,27],[0,14,1,16],[3,78,3,79],[0,17,1,19],[4,0,16,0],[3,61,3,62],[3,63,3,64],[3,76,3,77],[15,19,15,27],[11,19,11,27],[13,19,13,27],[14,19,14,27],[0,0,1,2],[0,3,1,7],[0,8,1,8],[0,9,1,11],[0,12,1,13]]}
["氏名",null,null,{"$f":"急性期!$F$2&\"\"","v":""},null,null,null,null,"様","性別",null,null,null,null,"年齢",null,null,{"$f":"急性期!$T$2&\"\"","v":""},null,null,"歳","施設名",null,null,{"$f":"急性期!$AB$1&\"\"","v":""}]
[]
[]
["\nFIM\n     ",null,null,null,null,null,null,null,null,null,null,null,null,null,null,null,null,null,null,"退院時"]
["運動\n","セルフケア",null,null,null,null,null,null,null,null,"A食事（箸・スプーン）"]
[null,null,null,null,null,null,null,null,null,null,"B整容"]
[null,null,null,null,null,null,null,null,null,null,"C清拭"]
[null,null,null,null,null,null,null,null,null,null,"D更衣（上半身）"]
[null,null,null,null,null,null,null,null,null,null,"E更衣（下半身)"]
[null,null,null,null,null,null,null,null,null,null,"Fトイレ"]
[null,"排泄",null,null,null,null,null,null,null,null,"G排尿コントロール"]
[null,null,null,null,null,null,null,null,null,null,"H排便コントロール"]
[null,"移乗",null,null,null,null,null,null,null,null,"Iベッド、椅子、車椅子"]
[null,null,null,null,null,null,null,null,null,null,"Jトイレ"]
[null,null,null,null,null,null,null,null,null,null,"K浴槽、シャワー"]
[null,"移動",null,null,null,null,null,null,null,null,"L歩行、車椅子"]
[null,null,null,null,null,null,null,null,null,null,"M階段"]
["認知","コミュニケーション",null,null,null,null,null,null,null,null,"N理解（聴覚、視覚）"]
[null,null,null,null,null,null,null,null,null,null,"O表出（音声、非音声）"]
[null,"社会認識",null,null,null,null,null,null,null,null,"P社会的交流"]
[null,null,null,null,null,null,null,null,null,null,"Q問題解決"]
[null,null,null,null,null,null,null,null,null,null,"R記憶"]
[null,null,null,null,null,null,null,null,null,null,null,null,null,null,null,null,"合計点",null,null,{"$f":"IF(OR(AC5=\"\",AC6=\"\",AC7=\"\",AC8=\"\",AC9=\"\",AC10=\"\",AC11=\"\",AC12=\"\",AC13=\"\",AC14=\"\",AC15=\"\",AC16=\"\",AC17=\"\",AC18=\"\",AC19=\"\",AC20=\"\",AC21=\"\",AC22=\"\"),\"\",SUM(AC5:AC22))","v":""},null,null,null,null,null,null,null,null,"点"]
["自立",null,null,null,"7：完全自立"]
[null,null,null,null,"6：修正自立（時間がかかるが、補助具が必要、安全性の配慮が必要）"]
["部分介助",null,null,null,"5：監視、準備（監視、指示、促し、準備）"]
["介助あり",null,null,null,"4：最小介助（75％以上自分で行う）"]
[null,null,null,null,"3：中等度介助（50％以上75％未満を自分で行う）"]
["完全介助",null,null,null,"2：最大介助（25％以上50％未満を自分で行う）"]
[null,null,null,null,"1：全介助（25％未満しか自分で行わない）"]

{"sheet":"CPS ","index":7,"n_rows":16,"n_cols":5,"rows_kept":16,"cut":false,"hidden":false,"merged":[[4,0,7,4],[2,0,2,4]]}
["CPSチェックシート 　　(監修：札幌医科大学医学部脳神経外科　教授　三國　信啓　先生) "]
[]
["複雑部分発作（CPS）は気付かれにくく、見過ごされていることが多い発作です。しかし、CPSを拾い上 げて治療することで、大発作への全般化を減らし、発作による事故などを少なくできる可能性がありま す。本CPSチェックシートを有効にご活用下さい。"]
[]
["《使用方法》\n※１剤以上の抗てんかん薬を服用されている方が対象です。\n※複雑部分発作(CPS)は患者さん本人の自覚がない発作のため、ご家族など、日常生活をともにされている方にチェックをいただく必要があります。\n※１個でもチェックがついたら、発作が完全にゼロになっていないことを疑ってください。\n※薬物治療の強化を行っても症状の改善が見られない場合は、専門医への紹介を考慮ください。 \n※飲み忘れ・怠薬がないかどうかを常に確認することが大切です。\n\n\n≪判定方法≫\n１）B・C合わせて２点以上 　　⇒すぐに薬物治療強化を行います。\n２）Cが１点(その他の項目はAに限る) 　　\n    　    ⇒具体的なエピソードを聞き、下記リスクの有無をご確認ください。 　　　\n　　　　　●生活に支障をきたしているかどうか 　　\n　　　　　●危険を伴う事が起こりそうかどうか(仕事関係・一人で過ごす時間も多い等) 　　　\n                　　　 ⇒１つでも当てはまればリスクあり ：すぐに薬物治療の強化を行います。 \n                          当てはまらなければリスクなし　：様子を見る。次回の外来時も続けてチェックがつくようであれば、治療強化を考えます。 \n３）上記以外の場合 　　⇒様子を見る。次回の外来時も続けてチェックがつくようであれば、治療強化を考えます。 \n"]
[]
[]
[]
[]
["チェック項目","A\n月に１～２回ほど","B\n週に１～２回ほど","C\n週に３回以上","D\n特になし"]
["①１点をずーっと見つめ、ぼーっとしているときがある。"]
["②こちらの問いかけに答えが返ってこなかったり、まと外れな答えが返って\n　きたりすることがある。"]
["③口をもごもごしたり、手をもぞもぞしたりして意識がはっきりしないときがある。"]
["④動作が止まっていることがある。"]
["⑤“何をしていたか覚えていない”という時がある。\n　 (いつの間にか移動していた等)"]
["合計点"]